[Event "*** Titled Tuesday 3|2 Blitz"]
[Site "Chess.com"]
[Date "2015.11.03"]
[Round "6"]
[White "Entilza"]
[Black "ilmago"]
[Result "1/2-1/2"]
[WhiteElo "2042"]
[BlackElo "1921"]
[TimeControl "180+2"]
[EndTime "12:18:26 PST"]
[Termination "Game drawn - insufficient material"]

1. d4 {[%clk 0:03:01.9]} 1... Nf6 {[%clk 0:02:59.2]} 2. c4 {[%clk 0:03:02.5]}
2... g6 {[%clk 0:03:00.3]} 3. Nc3 {[%clk 0:03:03]} 3... Bg7 {[%clk 0:03:01.8]}
4. e4 {[%clk 0:03:03.9]} 4... d6 {[%clk 0:03:02.8]} 5. Nf3 {[%clk 0:03:04]} 5...
O-O {[%clk 0:03:04.2]} 6. Be2 {[%clk 0:03:03]} 6... e5 {[%clk 0:03:04.2]} 7.
dxe5 {[%clk 0:03:03.8]} 7... dxe5 {[%clk 0:03:05]} 8. Qxd8 {[%clk 0:03:04.1]}
8... Rxd8 {[%clk 0:03:06.9]} 9. Bg5 {[%clk 0:03:04.7]} 9... Re8 {[%clk
0:03:07.4]} 10. O-O-O {[%clk 0:02:58.8]} 10... c6 {[%clk 0:03:00.8]} 11. Nxe5
{[%clk 0:02:58.5]} 11... Nxe4 {[%clk 0:02:57.2]} 12. Nxe4 {[%clk 0:02:47.8]}
12... Bxe5 {[%clk 0:02:57.3]} 13. Nf6+ {[%clk 0:02:43.5]} 13... Bxf6 {[%clk
0:02:57.4]} 14. Bxf6 {[%clk 0:02:40.5]} 14... Nd7 {[%clk 0:02:57.6]} 15. Rxd7
{[%clk 0:02:27.7]} 15... Bxd7 {[%clk 0:02:58]} 16. Bf3 {[%clk 0:02:28.7]} 16...
Be6 {[%clk 0:02:57]} 17. b3 {[%clk 0:02:28.9]} 17... Rac8 {[%clk 0:02:52.7]} 18.
g4 {[%clk 0:02:27.2]} 18... Rc7 {[%clk 0:02:52.3]} 19. h4 {[%clk 0:02:27.2]}
19... h6 {[%clk 0:02:51.2]} 20. h5 {[%clk 0:02:25.4]} 20... g5 {[%clk
0:02:51.8]} 21. Re1 {[%clk 0:02:23.9]} 21... Bd7 {[%clk 0:02:51.1]} 22. Rd1
{[%clk 0:02:22.4]} 22... Bc8 {[%clk 0:02:39.5]} 23. Kc2 {[%clk 0:02:11.2]} 23...
Rd7 {[%clk 0:02:40]} 24. Rxd7 {[%clk 0:02:07.8]} 24... Bxd7 {[%clk 0:02:40.2]}
25. a4 {[%clk 0:02:05.8]} 25... Re6 {[%clk 0:02:37.2]} 26. Bd4 {[%clk
0:02:05.9]} 26... b6 {[%clk 0:02:33.7]} 27. a5 {[%clk 0:02:06.7]} 27... c5
{[%clk 0:02:31.5]} 28. Be3 {[%clk 0:02:07]} 28... Re5 {[%clk 0:02:28.2]} 29. Bd5
{[%clk 0:01:55.8]} 29... Bxg4 {[%clk 0:02:26.4]} 30. b4 {[%clk 0:01:52.5]} 30...
Bxh5 {[%clk 0:02:20.9]} 31. bxc5 {[%clk 0:01:48.9]} 31... bxa5 {[%clk
0:02:12.8]} 32. c6 {[%clk 0:01:49.2]} 32... Bg4 {[%clk 0:02:09]} 33. Bxa7 {[%clk
0:01:49.5]} 33... h5 {[%clk 0:02:08.5]} 34. Bd4 {[%clk 0:01:48.9]} 34... Re8
{[%clk 0:02:08.3]} 35. Bf6 {[%clk 0:01:46.6]} 35... h4 {[%clk 0:02:06.7]} 36.
Bxg5 {[%clk 0:01:47.2]} 36... h3 {[%clk 0:02:07.5]} 37. Be3 {[%clk 0:01:43.7]}
37... Kg7 {[%clk 0:01:58.1]} 38. Kb3 {[%clk 0:01:44.2]} 38... Bd1+ {[%clk
0:01:54.7]} 39. Ka3 {[%clk 0:01:43.5]} 39... Kg6 {[%clk 0:01:55.1]} 40. c7
{[%clk 0:01:42.6]} 40... Rc8 {[%clk 0:01:49.1]} 41. Bf4 {[%clk 0:01:42.9]} 41...
Kf5 {[%clk 0:01:47.6]} 42. Bg3 {[%clk 0:01:42.3]} 42... Bg4 {[%clk 0:01:33.8]}
43. Bxf7 {[%clk 0:01:38.2]} 43... Rh8 {[%clk 0:01:27.9]} 44. Ka4 {[%clk
0:01:32.1]} 44... h2 {[%clk 0:01:25.2]} 45. Bxh2 {[%clk 0:01:32.1]} 45... Kf6
{[%clk 0:01:23.7]} 46. Bd5 {[%clk 0:01:22.8]} 46... Rxh2 {[%clk 0:01:23.1]} 47.
Bb7 {[%clk 0:01:23.4]} 47... Rh8 {[%clk 0:01:17.6]} 48. Kxa5 {[%clk 0:01:23.9]}
48... Ke7 {[%clk 0:01:18.6]} 49. Kb6 {[%clk 0:01:23.3]} 49... Bc8 {[%clk
0:01:17.1]} 50. c5 {[%clk 0:01:22]} 50... Bf5 {[%clk 0:01:10.3]} 51. f4 {[%clk
0:01:21.2]} 51... Rf8 {[%clk 0:01:10.1]} 52. c6 {[%clk 0:01:20.1]} 52... Kd6
{[%clk 0:01:09]} 53. Ba6 {[%clk 0:01:18.8]} 53... Bc8 {[%clk 0:01:06.1]} 54. Bb7
{[%clk 0:01:18.7]} 54... Bg4 {[%clk 0:01:00.3]} 55. Ba6 {[%clk 0:01:17.3]} 55...
Kd5 {[%clk 0:00:56.3]} 56. Bb7 {[%clk 0:01:16]} 56... Ke4 {[%clk 0:00:55.9]} 57.
c8=Q {[%clk 0:01:14]} 57... Bxc8 {[%clk 0:00:55.7]} 58. Bxc8 {[%clk 0:01:14.9]}
58... Rxc8 {[%clk 0:00:56.8]} 59. c7 {[%clk 0:01:16]} 59... Kxf4 {[%clk
0:00:52.8]} 60. Kb7 {[%clk 0:01:16.8]} 60... Rxc7+ {[%clk 0:00:54.3]} 61. Kxc7
{[%clk 0:01:17.1]} 1/2-1/2

[Event "*** Titled Tuesday 3|2 Blitz"]
[Site "Chess.com"]
[Date "2015.11.03"]
[Round "6"]
[White "Dlugy"]
[Black "VovAn1991"]
[Result "1-0"]
[WhiteElo "2567"]
[BlackElo "2470"]
[TimeControl "180+2"]
[EndTime "12:18:31 PST"]
[Termination "Dlugy won by resignation"]

1. d4 {[%clk 0:03:01.9]} 1... f5 {[%clk 0:03:00.8]} 2. g3 {[%clk 0:03:01]} 2...
Nf6 {[%clk 0:03:00.4]} 3. Bg2 {[%clk 0:03:02.5]} 3... g6 {[%clk 0:03:01.4]} 4.
Nh3 {[%clk 0:03:03.7]} 4... Bg7 {[%clk 0:03:02]} 5. c3 {[%clk 0:03:05.1]} 5...
O-O {[%clk 0:03:02.8]} 6. Qb3+ {[%clk 0:03:06]} 6... d5 {[%clk 0:03:03.3]} 7.
Nf4 {[%clk 0:03:07.2]} 7... e6 {[%clk 0:02:36]} 8. O-O {[%clk 0:03:07.2]} 8...
Nc6 {[%clk 0:02:37.2]} 9. Nd2 {[%clk 0:03:07.3]} 9... a5 {[%clk 0:02:37.5]} 10.
a4 {[%clk 0:03:07.8]} 10... Ne4 {[%clk 0:02:32.4]} 11. Nxe4 {[%clk 0:03:07.6]}
11... fxe4 {[%clk 0:02:34.3]} 12. f3 {[%clk 0:03:08.9]} 12... exf3 {[%clk
0:02:27.4]} 13. Bxf3 {[%clk 0:03:10]} 13... Kh8 {[%clk 0:02:18.4]} 14. e4 {[%clk
0:03:01.6]} 14... dxe4 {[%clk 0:02:19]} 15. Bxe4 {[%clk 0:03:02.8]} 15... e5
{[%clk 0:02:20]} 16. dxe5 {[%clk 0:03:03.7]} 16... Nxe5 {[%clk 0:02:21.9]} 17.
Be3 {[%clk 0:03:00.9]} 17... Ng4 {[%clk 0:02:19.7]} 18. Bc5 {[%clk 0:03:00.9]}
18... Re8 {[%clk 0:02:05.9]} 19. Bxg6 {[%clk 0:02:46.2]} 19... Qd2 {[%clk
0:01:55.1]} 20. Qc2 {[%clk 0:02:45.7]} 20... Qxc2 {[%clk 0:01:39.3]} 21. Bxc2
{[%clk 0:02:46.4]} 21... b6 {[%clk 0:01:40.9]} 22. Bf2 {[%clk 0:02:29.3]} 22...
Ba6 {[%clk 0:01:40.4]} 23. Rfe1 {[%clk 0:02:30.2]} 23... Ne5 {[%clk 0:01:34.8]}
24. Be4 {[%clk 0:02:29.5]} 24... Rad8 {[%clk 0:01:35.7]} 25. Bd4 {[%clk
0:02:15.6]} 25... Bc4 {[%clk 0:01:33.3]} 26. Nh5 {[%clk 0:02:12.2]} 26... c5
{[%clk 0:01:28.8]} 27. Nxg7 {[%clk 0:02:12.5]} 27... Kxg7 {[%clk 0:01:29.3]} 28.
Be3 {[%clk 0:01:27.8]} 28... Bd5 {[%clk 0:01:08.7]} 29. Bxd5 {[%clk 0:01:19.4]}
29... Rxd5 {[%clk 0:01:10.6]} 30. Kg2 {[%clk 0:01:17.6]} 30... Red8 {[%clk
0:00:46.2]} 31. Re2 {[%clk 0:01:15.3]} 31... Nc4 {[%clk 0:00:44.6]} 32. Bf4
{[%clk 0:01:16.2]} 32... R8d7 {[%clk 0:00:41.5]} 33. Rae1 {[%clk 0:01:14.8]}
33... Nd2 {[%clk 0:00:28.6]} 34. Re7+ {[%clk 0:01:13.6]} 34... Rxe7 {[%clk
0:00:24.1]} 35. Rxe7+ {[%clk 0:01:14.5]} 35... Kg8 {[%clk 0:00:23.9]} 36. Rb7
{[%clk 0:01:15.1]} 36... c4 {[%clk 0:00:14.9]} 37. Rxb6 {[%clk 0:01:15.5]} 37...
Nb3 {[%clk 0:00:16.1]} 38. Rc6 {[%clk 0:01:10.6]} 38... Nc5 {[%clk 0:00:16.5]}
39. Kf3 {[%clk 0:00:51.8]} 39... Nxa4 {[%clk 0:00:16.8]} 40. Ke4 {[%clk
0:00:49.5]} 40... Rc5 {[%clk 0:00:13.7]} 41. Rxc5 {[%clk 0:00:44.2]} 41... Nxc5+
{[%clk 0:00:15.6]} 42. Kd4 {[%clk 0:00:44.6]} 42... Nd3 {[%clk 0:00:17]} 43.
Kxc4 {[%clk 0:00:45.6]} 43... Nxb2+ {[%clk 0:00:18.3]} 44. Kb3 {[%clk
0:00:45.8]} 44... Nd3 {[%clk 0:00:19.4]} 45. Ka4 {[%clk 0:00:46.5]} 45... Kf7
{[%clk 0:00:12.6]} 46. Kxa5 {[%clk 0:00:47.8]} 46... Ke6 {[%clk 0:00:14.3]} 47.
c4 {[%clk 0:00:48.8]} 47... Kd7 {[%clk 0:00:14.7]} 48. Kb5 {[%clk 0:00:49.5]}
48... h5 {[%clk 0:00:13.9]} 49. h4 {[%clk 0:00:43]} 49... Nf2 {[%clk 0:00:13.2]}
50. Kc5 {[%clk 0:00:43.8]} 50... Nd3+ {[%clk 0:00:11.9]} 51. Kd5 {[%clk
0:00:45]} 51... Nb2 {[%clk 0:00:12.5]} 52. c5 {[%clk 0:00:45.5]} 52... Nd3
{[%clk 0:00:13.5]} 53. c6+ {[%clk 0:00:46.6]} 53... Kd8 {[%clk 0:00:14.8]} 54.
Ke6 {[%clk 0:00:44.5]} 54... Nb4 {[%clk 0:00:15.1]} 55. c7+ {[%clk 0:00:45.8]}
55... Kc8 {[%clk 0:00:16.4]} 56. Kf5 {[%clk 0:00:47.5]} 1-0

[Event "*** Titled Tuesday 3|2 Blitz"]
[Site "Chess.com"]
[Date "2015.11.03"]
[Round "6"]
[White "Saitama_Hero"]
[Black "kikydu96"]
[Result "1-0"]
[WhiteElo "2189"]
[BlackElo "2247"]
[TimeControl "180+2"]
[EndTime "12:18:58 PST"]
[Termination "Saitama_Hero won by resignation"]

1. d4 {[%clk 0:03:01.9]} 1... d5 {[%clk 0:02:59.6]} 2. c4 {[%clk 0:03:03.4]}
2... c6 {[%clk 0:03:00.8]} 3. Nf3 {[%clk 0:03:05]} 3... Nf6 {[%clk 0:03:01.5]}
4. Nc3 {[%clk 0:03:06.5]} 4... dxc4 {[%clk 0:03:02.1]} 5. a4 {[%clk 0:03:06.4]}
5... Bf5 {[%clk 0:03:03.1]} 6. e3 {[%clk 0:03:07.7]} 6... e6 {[%clk 0:02:59.7]}
7. Bxc4 {[%clk 0:03:09.2]} 7... Bb4 {[%clk 0:03:00.2]} 8. O-O {[%clk 0:03:10.6]}
8... Nbd7 {[%clk 0:02:58]} 9. h3 {[%clk 0:03:12]} 9... Bg6 {[%clk 0:02:56.4]}
10. Qb3 {[%clk 0:03:04.5]} 10... Qe7 {[%clk 0:02:54.1]} 11. Na2 {[%clk
0:02:52.6]} 11... Bd6 {[%clk 0:02:54.1]} 12. Qxb7 {[%clk 0:02:52.5]} 12... O-O
{[%clk 0:02:55.7]} 13. Qb3 {[%clk 0:02:50.8]} 13... Rab8 {[%clk 0:02:55.3]} 14.
Qd1 {[%clk 0:02:50.8]} 14... e5 {[%clk 0:02:56.2]} 15. Nc3 {[%clk 0:02:45.3]}
15... Bh5 {[%clk 0:02:48.4]} 16. Be2 {[%clk 0:02:43.3]} 16... Bxf3 {[%clk
0:02:32]} 17. Bxf3 {[%clk 0:02:43.2]} 17... e4 {[%clk 0:02:33.3]} 18. Be2 {[%clk
0:02:42.2]} 18... c5 {[%clk 0:02:34.6]} 19. Nb5 {[%clk 0:02:41.2]} 19... cxd4
{[%clk 0:02:31]} 20. Nxd6 {[%clk 0:02:27.7]} 20... Qxd6 {[%clk 0:02:30.1]} 21.
Qxd4 {[%clk 0:02:28.6]} 21... Qxd4 {[%clk 0:02:27.7]} 22. exd4 {[%clk
0:02:30.5]} 22... Nd5 {[%clk 0:02:27.8]} 23. Bb5 {[%clk 0:02:26.1]} 23... N7f6
{[%clk 0:02:26.3]} 24. b3 {[%clk 0:02:05.6]} 24... Rfd8 {[%clk 0:02:19.5]} 25.
Bd2 {[%clk 0:01:58]} 25... Ne7 {[%clk 0:02:02.3]} 26. Rac1 {[%clk 0:01:37.6]}
26... Rxd4 {[%clk 0:01:53.5]} 27. Be3 {[%clk 0:01:35.5]} 27... Rdd8 {[%clk
0:01:36.3]} 28. Bxa7 {[%clk 0:01:34.7]} 28... Rb7 {[%clk 0:01:36.8]} 29. Bc5
{[%clk 0:01:31.3]} 29... Nf5 {[%clk 0:01:28.3]} 30. Rfd1 {[%clk 0:01:29.2]}
30... Rxd1+ {[%clk 0:01:18.4]} 31. Rxd1 {[%clk 0:01:31.1]} 31... h6 {[%clk
0:01:18.3]} 32. b4 {[%clk 0:01:27.7]} 32... Ne7 {[%clk 0:01:01.6]} 33. Bc4
{[%clk 0:01:00]} 33... Nc6 {[%clk 0:00:56.4]} 34. b5 {[%clk 0:00:55.7]} 34...
Ne5 {[%clk 0:00:32.7]} 35. Rd8+ {[%clk 0:00:44.2]} 35... Kh7 {[%clk 0:00:33.1]}
36. Bf1 {[%clk 0:00:45.7]} 36... Nfd7 {[%clk 0:00:24.2]} 37. Bd4 {[%clk
0:00:42.4]} 37... Nd3 {[%clk 0:00:22.9]} 38. a5 {[%clk 0:00:26.6]} 38... N7c5
{[%clk 0:00:08.6]} 39. a6 {[%clk 0:00:18.2]} 39... Rxb5 {[%clk 0:00:08.1]} 40.
a7 {[%clk 0:00:16.3]} 40... Ra5 {[%clk 0:00:07.2]} 41. a8=Q {[%clk 0:00:17.3]}
41... Rxa8 {[%clk 0:00:08.3]} 42. Rxa8 {[%clk 0:00:18.8]} 42... Ne6 {[%clk
0:00:09.6]} 43. Be3 {[%clk 0:00:18.3]} 43... Ne5 {[%clk 0:00:10.2]} 44. Ra5
{[%clk 0:00:16.7]} 44... Nc6 {[%clk 0:00:10.6]} 45. Ra6 {[%clk 0:00:13.8]} 45...
Nb4 {[%clk 0:00:11]} 46. Rb6 {[%clk 0:00:14.3]} 46... Nd5 {[%clk 0:00:11.5]} 47.
Rb7 {[%clk 0:00:15.3]} 47... f5 {[%clk 0:00:11.2]} 48. Bc4 {[%clk 0:00:16]}
48... Ndf4 {[%clk 0:00:08.4]} 49. Kh2 {[%clk 0:00:11.8]} 49... Kg6 {[%clk
0:00:09.1]} 50. g3 {[%clk 0:00:13.3]} 50... Nd8 {[%clk 0:00:07.5]} 51. Rb6+
{[%clk 0:00:11.7]} 1-0

[Event "*** Titled Tuesday 3|2 Blitz"]
[Site "Chess.com"]
[Date "2015.11.03"]
[Round "6"]
[White "metalbattler"]
[Black "WanderingPuppet"]
[Result "1-0"]
[WhiteElo "1994"]
[BlackElo "2195"]
[TimeControl "180+2"]
[EndTime "12:20:15 PST"]
[Termination "metalbattler won by resignation"]

1. e4 {[%clk 0:03:01.1]} 1... c5 {[%clk 0:02:55.5]} 2. Nc3 {[%clk 0:03:01.4]}
2... d6 {[%clk 0:02:56.4]} 3. d4 {[%clk 0:03:01.5]} 3... cxd4 {[%clk 0:02:58.3]}
4. Qxd4 {[%clk 0:03:03]} 4... Nc6 {[%clk 0:02:59.9]} 5. Bb5 {[%clk 0:03:04.1]}
5... Bd7 {[%clk 0:03:00.8]} 6. Bxc6 {[%clk 0:03:04.9]} 6... bxc6 {[%clk
0:03:02.7]} 7. Bg5 {[%clk 0:02:54.8]} 7... e5 {[%clk 0:03:01.1]} 8. Qd3 {[%clk
0:02:49.9]} 8... Qxg5 {[%clk 0:03:01.3]} 9. Nf3 {[%clk 0:02:47.5]} 9... Qd8
{[%clk 0:03:01]} 10. O-O-O {[%clk 0:02:46.8]} 10... Nf6 {[%clk 0:03:02.5]} 11.
Qc4 {[%clk 0:02:18.7]} 11... Be7 {[%clk 0:03:00.1]} 12. h4 {[%clk 0:02:13.6]}
12... O-O {[%clk 0:02:58.5]} 13. Ng5 {[%clk 0:02:07.2]} 13... h6 {[%clk
0:02:57.8]} 14. f3 {[%clk 0:02:07.5]} 14... Rb8 {[%clk 0:02:50]} 15. g4 {[%clk
0:02:05.1]} 15... Qb6 {[%clk 0:02:48.6]} 16. b3 {[%clk 0:02:00.7]} 16... hxg5
{[%clk 0:02:46.7]} 17. hxg5 {[%clk 0:02:00.6]} 17... Qe3+ {[%clk 0:02:48]} 18.
Kb2 {[%clk 0:01:56.4]} 18... Qxg5 {[%clk 0:02:49]} 19. Qe2 {[%clk 0:01:52.5]}
19... Nh7 {[%clk 0:02:06.5]} 20. Rh5 {[%clk 0:01:49.2]} 20... Qf4 {[%clk
0:01:42.2]} 21. Rdh1 {[%clk 0:01:44.1]} 21... g6 {[%clk 0:01:42.7]} 22. Rxh7
{[%clk 0:01:42.4]} 22... Bf6 {[%clk 0:01:43.3]} 23. g5 {[%clk 0:01:30.5]} 23...
Qxg5 {[%clk 0:01:32.8]} 24. Qh2 {[%clk 0:01:29.7]} 24... Qh4 {[%clk 0:00:56.9]}
25. Rxh4 {[%clk 0:01:30]} 25... Bxh4 {[%clk 0:00:58.8]} 26. Qxh4 {[%clk
0:01:30.8]} 26... Kg7 {[%clk 0:01:00.6]} 27. Qh6+ {[%clk 0:01:18.6]} 27... Kf6
{[%clk 0:01:02]} 28. f4 {[%clk 0:01:16.5]} 28... exf4 {[%clk 0:00:57.2]} 29.
Qxf4+ {[%clk 0:01:13]} 29... Kg7 {[%clk 0:00:51.2]} 30. Qxd6 {[%clk 0:01:11.9]}
30... Bg4 {[%clk 0:00:50.3]} 31. Qxc6 {[%clk 0:00:59.8]} 31... Rbe8 {[%clk
0:00:43.3]} 32. Qc7 {[%clk 0:00:49.2]} 32... Re6 {[%clk 0:00:31.5]} 33. Rf1
{[%clk 0:00:44.8]} 33... Bh3 {[%clk 0:00:28]} 34. Rf3 {[%clk 0:00:44.6]} 34...
Bg2 {[%clk 0:00:29]} 35. Re3 {[%clk 0:00:44.3]} 35... Rfe8 {[%clk 0:00:27.7]}
36. e5 {[%clk 0:00:44.5]} 36... a5 {[%clk 0:00:26.1]} 37. Nd5 {[%clk 0:00:43.5]}
37... Bxd5 {[%clk 0:00:26]} 38. c4 {[%clk 0:00:40.1]} 38... Bg2 {[%clk
0:00:18.4]} 39. Qxa5 {[%clk 0:00:40.2]} 39... R8e7 {[%clk 0:00:14.3]} 40. Qc3
{[%clk 0:00:32.4]} 40... Bc6 {[%clk 0:00:10.9]} 41. b4 {[%clk 0:00:31.7]} 41...
Rc7 {[%clk 0:00:12.5]} 42. Kb3 {[%clk 0:00:27.3]} 42... Bb5 {[%clk 0:00:09.1]}
43. c5 {[%clk 0:00:26.6]} 43... Ra7 {[%clk 0:00:07.8]} 44. a3 {[%clk 0:00:24.9]}
44... Ba4+ {[%clk 0:00:07.9]} 45. Kb2 {[%clk 0:00:25.9]} 45... Bb5 {[%clk
0:00:08.4]} 46. Qd4 {[%clk 0:00:25.5]} 46... Rd7 {[%clk 0:00:08.5]} 47. Qh4
{[%clk 0:00:25.9]} 47... Rd2+ {[%clk 0:00:09.3]} 48. Kc3 {[%clk 0:00:27]} 48...
Ra2 {[%clk 0:00:07.2]} 49. Kb3 {[%clk 0:00:26.1]} 49... Rg2 {[%clk 0:00:04.3]}
50. Rh3 {[%clk 0:00:27.3]} 50... Kf8 {[%clk 0:00:02.3]} 51. Qd8+ {[%clk
0:00:25.6]} 51... Re8 {[%clk 0:00:02.7]} 52. Rh8+ {[%clk 0:00:23.1]} 52... Kg7
{[%clk 0:00:03.2]} 53. Rxe8 {[%clk 0:00:24.1]} 53... Rg3+ {[%clk 0:00:02.8]} 54.
Kb2 {[%clk 0:00:24.4]} 54... Bxe8 {[%clk 0:00:04.7]} 55. Qxe8 {[%clk 0:00:24.8]}
55... Rg2+ {[%clk 0:00:05.6]} 56. Kc3 {[%clk 0:00:25.2]} 56... Re2 {[%clk
0:00:07.5]} 57. a4 {[%clk 0:00:24.6]} 57... g5 {[%clk 0:00:08.8]} 58. Qe7 {[%clk
0:00:24.8]} 58... g4 {[%clk 0:00:09.2]} 59. Qg5+ {[%clk 0:00:25.5]} 59... Kf8
{[%clk 0:00:10.8]} 60. Qxg4 {[%clk 0:00:26.6]} 60... Rxe5 {[%clk 0:00:12.5]} 61.
Kc4 {[%clk 0:00:26.3]} 61... Re1 {[%clk 0:00:13]} 62. c6 {[%clk 0:00:26.9]}
62... Rc1+ {[%clk 0:00:14.5]} 63. Kb5 {[%clk 0:00:27.8]} 63... Ke7 {[%clk
0:00:16.4]} 64. Qg5+ {[%clk 0:00:27.6]} 64... Kd6 {[%clk 0:00:16.7]} 65. Qxc1
{[%clk 0:00:28.8]} 65... Kc7 {[%clk 0:00:18.6]} 66. Qd1 {[%clk 0:00:29.2]} 66...
f5 {[%clk 0:00:20.5]} 67. Qd7+ {[%clk 0:00:30.6]} 67... Kb8 {[%clk 0:00:22.4]}
68. Kb6 {[%clk 0:00:31.7]} 1-0

[Event "*** Titled Tuesday 3|2 Blitz"]
[Site "Chess.com"]
[Date "2015.11.03"]
[Round "6"]
[White "jup1978"]
[Black "Makalexa"]
[Result "0-1"]
[WhiteElo "2205"]
[BlackElo "2098"]
[TimeControl "180+2"]
[EndTime "12:20:22 PST"]
[Termination "Makalexa won by resignation"]

1. e4 {[%clk 0:03:01.9]} 1... c5 {[%clk 0:02:59.5]} 2. Nf3 {[%clk 0:03:03.1]}
2... d6 {[%clk 0:02:59.2]} 3. Bb5+ {[%clk 0:03:04.5]} 3... Bd7 {[%clk
0:02:58.6]} 4. Bxd7+ {[%clk 0:03:04.3]} 4... Nxd7 {[%clk 0:02:59.3]} 5. d4
{[%clk 0:03:04.2]} 5... g6 {[%clk 0:02:58.3]} 6. O-O {[%clk 0:03:03.1]} 6... Bg7
{[%clk 0:02:58]} 7. c3 {[%clk 0:03:04.7]} 7... Ngf6 {[%clk 0:02:55.5]} 8. e5
{[%clk 0:03:04]} 8... Ne4 {[%clk 0:02:49]} 9. exd6 {[%clk 0:03:00.4]} 9... Nxd6
{[%clk 0:02:47.2]} 10. Bf4 {[%clk 0:02:57.4]} 10... O-O {[%clk 0:02:38]} 11.
dxc5 {[%clk 0:02:57.2]} 11... Nxc5 {[%clk 0:02:38.4]} 12. Bxd6 {[%clk
0:02:58.5]} 12... Qxd6 {[%clk 0:02:37.8]} 13. Qxd6 {[%clk 0:02:58.9]} 13... exd6
{[%clk 0:02:39.7]} 14. Rd1 {[%clk 0:02:59.3]} 14... Rad8 {[%clk 0:02:35.8]} 15.
Na3 {[%clk 0:02:59.1]} 15... d5 {[%clk 0:02:30.4]} 16. Nc2 {[%clk 0:02:55.2]}
16... Na4 {[%clk 0:02:26.9]} 17. Rab1 {[%clk 0:02:55.1]} 17... Rd7 {[%clk
0:02:22.4]} 18. Ncd4 {[%clk 0:02:54.9]} 18... Rfd8 {[%clk 0:02:22.4]} 19. Kf1
{[%clk 0:02:56]} 19... a6 {[%clk 0:02:19.3]} 20. Re1 {[%clk 0:02:56.1]} 20... b5
{[%clk 0:02:17.5]} 21. a3 {[%clk 0:02:56.4]} 21... Nb6 {[%clk 0:02:16.1]} 22.
Ne5 {[%clk 0:02:50]} 22... Bxe5 {[%clk 0:02:09.4]} 23. Rxe5 {[%clk 0:02:51.9]}
23... Nc4 {[%clk 0:02:10.7]} 24. Re2 {[%clk 0:02:51.4]} 24... Kf8 {[%clk
0:02:08.2]} 25. b3 {[%clk 0:02:39.9]} 25... Nd6 {[%clk 0:02:01.9]} 26. f3 {[%clk
0:02:39.1]} 26... Re8 {[%clk 0:01:59.3]} 27. Rbe1 {[%clk 0:02:37.5]} 27... Rxe2
{[%clk 0:01:45.8]} 28. Rxe2 {[%clk 0:02:39.4]} 28... a5 {[%clk 0:01:45.7]} 29.
Ke1 {[%clk 0:02:34.1]} 29... a4 {[%clk 0:01:46.2]} 30. bxa4 {[%clk 0:02:34.5]}
30... bxa4 {[%clk 0:01:48.1]} 31. Rb2 {[%clk 0:02:30.6]} 31... Nc4 {[%clk
0:01:45]} 32. Rb4 {[%clk 0:02:28.7]} 32... Ra7 {[%clk 0:01:44.5]} 33. Nc2 {[%clk
0:02:24.1]} 33... Ke7 {[%clk 0:01:40.2]} 34. Rb5 {[%clk 0:02:24.4]} 34... Ke6
{[%clk 0:01:36.2]} 35. Kf2 {[%clk 0:02:21.6]} 35... Rc7 {[%clk 0:01:30.4]} 36.
Rb4 {[%clk 0:02:19.1]} 36... Ra7 {[%clk 0:01:22.5]} 37. Rb5 {[%clk 0:02:20.1]}
37... Rc7 {[%clk 0:00:57.1]} 38. Nd4+ {[%clk 0:02:15]} 38... Kf6 {[%clk
0:00:47.8]} 39. Rxd5 {[%clk 0:02:06.8]} 39... Nxa3 {[%clk 0:00:48.5]} 40. Ra5
{[%clk 0:02:07.3]} 40... Rc4 {[%clk 0:00:44.6]} 41. h4 {[%clk 0:01:59.3]} 41...
h5 {[%clk 0:00:43.7]} 42. Ke2 {[%clk 0:01:48.7]} 42... Nb1 {[%clk 0:00:44.3]}
43. Nb5 {[%clk 0:01:43.6]} 43... Rxh4 {[%clk 0:00:33.8]} 44. Kd3 {[%clk
0:01:38]} 44... Rh2 {[%clk 0:00:24]} 45. Rxa4 {[%clk 0:01:31]} 45... Rxg2 {[%clk
0:00:23.8]} 46. Ra1 {[%clk 0:01:31.5]} 46... Rb2 {[%clk 0:00:21.1]} 47. Nd4
{[%clk 0:01:29.1]} 47... h4 {[%clk 0:00:20.4]} 48. Ra6+ {[%clk 0:01:28.2]} 48...
Kg5 {[%clk 0:00:19.9]} 49. Ra5+ {[%clk 0:01:29.6]} 49... Kf4 {[%clk 0:00:19.7]}
50. Ra7 {[%clk 0:01:30.8]} 50... f5 {[%clk 0:00:18.8]} 51. Rg7 {[%clk
0:01:29.8]} 51... g5 {[%clk 0:00:19]} 52. Ne6+ {[%clk 0:01:30.7]} 52... Kxf3
{[%clk 0:00:19.9]} 53. Nxg5+ {[%clk 0:01:32]} 53... Kf2 {[%clk 0:00:18.3]} 54.
Nh3+ {[%clk 0:01:31.4]} 54... Kf3 {[%clk 0:00:17.4]} 55. Ng1+ {[%clk 0:01:28.8]}
55... Kf4 {[%clk 0:00:16.1]} 56. Nh3+ {[%clk 0:01:29.4]} 56... Kf3 {[%clk
0:00:16.7]} 57. Ng1+ {[%clk 0:01:30]} 57... Kf4 {[%clk 0:00:17.8]} 58. Nh3+
{[%clk 0:01:27.8]} 58... Ke5 {[%clk 0:00:18.7]} 59. Re7+ {[%clk 0:01:22.7]}
59... Kf6 {[%clk 0:00:18.6]} 60. Rh7 {[%clk 0:01:23.5]} 60... Rd2+ {[%clk
0:00:19.3]} 61. Ke3 {[%clk 0:01:23]} 61... Rc2 {[%clk 0:00:19.9]} 62. Rxh4
{[%clk 0:01:19.7]} 62... Rxc3+ {[%clk 0:00:20.4]} 63. Kd4 {[%clk 0:01:20.9]}
63... Ra3 {[%clk 0:00:20.6]} 64. Rh6+ {[%clk 0:01:20.9]} 64... Kg7 {[%clk
0:00:20.6]} 65. Rh5 {[%clk 0:01:21.9]} 65... Kg6 {[%clk 0:00:20.3]} 66. Rg5+
{[%clk 0:01:21.9]} 66... Kf6 {[%clk 0:00:21.2]} 67. Rg8 {[%clk 0:01:22.8]} 67...
Rxh3 {[%clk 0:00:20.6]} 68. Rf8+ {[%clk 0:01:23.8]} 68... Kg5 {[%clk 0:00:21.3]}
69. Ke5 {[%clk 0:01:22.9]} 69... Re3+ {[%clk 0:00:21.4]} 70. Kd4 {[%clk
0:01:24]} 70... Re7 {[%clk 0:00:22.1]} 71. Rg8+ {[%clk 0:01:23.9]} 71... Kf4
{[%clk 0:00:22.3]} 72. Rg1 {[%clk 0:01:25.3]} 72... Nd2 {[%clk 0:00:22.6]} 73.
Kd3 {[%clk 0:01:25.8]} 73... Nf3 {[%clk 0:00:23.4]} 74. Rg6 {[%clk 0:01:26.6]}
74... Re3+ {[%clk 0:00:24]} 75. Kc2 {[%clk 0:01:26]} 75... Nd4+ {[%clk 0:00:24]}
76. Kd2 {[%clk 0:01:25.8]} 76... Nf3+ {[%clk 0:00:21.1]} 77. Kc2 {[%clk
0:01:26.4]} 77... Re2+ {[%clk 0:00:21.5]} 78. Kd1 {[%clk 0:01:26.3]} 78... Rd2+
{[%clk 0:00:22.4]} 79. Kc1 {[%clk 0:01:26.9]} 79... Rd8 {[%clk 0:00:23.3]} 80.
Rg7 {[%clk 0:01:24.9]} 80... Ke3 {[%clk 0:00:23.8]} 81. Re7+ {[%clk 0:01:22.5]}
81... Kf4 {[%clk 0:00:24.6]} 82. Rg7 {[%clk 0:01:23.2]} 82... Ne5 {[%clk
0:00:22.4]} 83. Kc2 {[%clk 0:01:22.7]} 83... Ke3 {[%clk 0:00:22.9]} 84. Rg3+
{[%clk 0:01:20.4]} 84... Ke4 {[%clk 0:00:22.2]} 85. Rg7 {[%clk 0:01:21.1]} 85...
f4 {[%clk 0:00:23]} 86. Rh7 {[%clk 0:01:15.9]} 86... f3 {[%clk 0:00:23.9]} 87.
Rh4+ {[%clk 0:01:16.7]} 87... Ke3 {[%clk 0:00:24.4]} 88. Rh3 {[%clk 0:01:17.3]}
88... Ke2 {[%clk 0:00:23.4]} 0-1